fUST/lending_fUST_20250811
["ID","MTS","AMOUNT","RATE_DAILY","PERIOD"]
[378392406,1754842248173,-500.0,0.00023873,2]
[378392407,1754842248184,-500.0,0.00023873,2]
[378392408,1754842248196,-500.0,0.00023873,2]
[378392409,1754842248207,-500.0,0.00023873,2]
[378392410,1754842248218,-500.0,0.00023873,2]
[378392411,1754842248229,-500.0,0.00023873,2]
[378392412,1754842248240,-500.0,0.00023873,2]
[378392413,1754842248251,-150.0,0.00023873,2]
[378392414,1754842248261,-499.92285683,0.00023873,2]
[378392415,1754842248273,-500.0,0.00023873,2]
[378392416,1754842248285,-500.0,0.00023873,2]
[378392417,1754842248297,-500.0,0.00023873,2]
[378392418,1754842248309,-500.0,0.00023873,2]
[378392419,1754842248320,-200.0,0.0002389,2]
[378392420,1754842248332,-1337.63,0.0002389,2]
[378392421,1754842248344,-1281.9,0.0002389,2]
[378392422,1754842248355,-460.0,0.0002389,2]
[378392423,1754842248365,-406.81171697,0.0002389,2]
[378392435,1754842327069,20000.0,0.00019859,2]
[378392436,1754842327097,20000.0,0.00019859,2]
[378392437,1754842327124,20000.0,0.00019859,2]
[378392438,1754842327152,20000.0,0.00019859,2]
[378392439,1754842327178,20000.0,0.00019859,2]
[378392440,1754842327268,20000.0,0.00019859,2]
[378392441,1754842327352,20000.0,0.00019859,2]
[378392442,1754842327431,20000.0,0.00019859,2]
[378392443,1754842327516,20000.0,0.00019859,2]
[378392444,1754842327602,20000.0,0.00019859,2]
[378392445,1754842327689,20000.0,0.00019859,2]
[378392446,1754842327777,20000.0,0.00019859,2]
[378392447,1754842327858,20000.0,0.00019859,2]
[378392448,1754842327935,20000.0,0.00019859,2]
[378392449,1754842328008,20000.0,0.00019859,2]
[378392450,1754842328082,20000.0,0.00019859,2]
[378392451,1754842328155,20000.0,0.00019859,2]
[378392452,1754842328187,30000.0,0.00019859,2]
[378392457,1754842339818,5000.0,0.00019953,2]
[378392462,1754842348216,5000.0,0.00019953,2]
[378392463,1754842356102,5000.0,0.00019953,2]
[378392464,1754842356497,1811.0,0.00031485,30]
[378392465,1754842364238,5000.0,0.00019953,2]
[378392466,1754842371358,221.0051492,0.00019857,2]
[378392467,1754842372188,5000.0,0.00019953,2]
[378392468,1754842372558,212.38157,0.00013699,2]
[378392472,1754842380921,5000.0,0.00019954,2]
[378392475,1754842388883,5000.0,0.00019954,2]
[378392477,1754842397585,5000.0,0.00019954,2]
[378392478,1754842406016,1373.84186657,0.00019954,2]
[378392479,1754842414031,3626.15813343,0.00019954,2]
[378392480,1754842414096,1373.84186657,0.00019954,2]
[378392481,1754842429617,5000.0,0.00019954,2]
[378392483,1754842443363,3626.15813343,0.00017,2]
[378392484,1754842443441,10000.0,0.00017,2]
[378392485,1754842443520,10000.0,0.00017,2]
[378392486,1754842443603,10000.0,0.00017,2]
[378392487,1754842443693,10000.0,0.00017,2]
[378392488,1754842443776,10000.0,0.00017,2]
[378392489,1754842443870,10000.0,0.00017,2]
[378392490,1754842443945,10000.0,0.00017,2]
[378392491,1754842444018,10000.0,0.00017,2]
[378392492,1754842444096,10000.0,0.00017,2]
[378392493,1754842444173,10000.0,0.00017,2]
[378392494,1754842444247,10000.0,0.00017,2]
[378392495,1754842444318,10000.0,0.00017,2]
[378392496,1754842444390,10000.0,0.00017,2]
[378392497,1754842444457,8231.29495257,0.00017,2]
[378392498,1754842444944,1768.70504743,0.00019954,2]
[378392499,1754842445016,3231.29495257,0.00019954,2]
[378392500,1754842451700,6768.70504743,0.00018,2]
[378392501,1754842451767,10000.0,0.00018,2]
[378392502,1754842451828,10000.0,0.00018,2]
[378392503,1754842451892,9174.7058581,0.00018,2]
[378392504,1754842459105,825.2941419,0.00019,3]
[378392505,1754842459177,9174.7058581,0.00019,3]
[378392506,1754842460831,825.2941419,0.00019954,2]
[378392507,1754842460903,4174.7058581,0.00019954,2]
[378392508,1754842476624,5000.0,0.00019954,2]
[378392512,1754842491894,825.2941419,0.00019954,2]
[378392513,1754842491967,4174.7058581,0.00019954,2]
[378392514,1754842507282,5000.0,0.00019954,2]
[378392516,1754842523090,825.2941419,0.00019954,2]
[378392517,1754842523164,4174.7058581,0.00019954,2]
[378392518,1754842538906,5000.0,0.00019954,2]
[378392520,1754842556775,825.2941419,0.00019954,2]
[378392521,1754842556851,4174.7058581,0.00019954,2]
[378392523,1754842575811,5000.0,0.00019954,2]
[378392524,1754842591293,825.2941419,0.00019954,2]
[378392525,1754842591357,2654.75952475,0.00019954,2]
[378392526,1754842612667,666.0,0.00019178,2]
[378392530,1754842644616,6679.24047525,0.00019953,2]
[378392531,1754842644701,10000.0,0.00019953,2]
[378392532,1754842644788,3602.38952475,0.00019953,2]
[378392537,1754842711646,453.899027,0.00019356,2]
[378392538,1754842711983,1709.377886,0.00019357,2]
[378392539,1754842712888,187.502997,0.00019358,2]
[378392540,1754842713307,986.36381386,0.00019358,2]
[378392541,1754842713657,493.18190693,0.0001936,2]
[378392542,1754842719984,2567.28484446,0.0001958,2]
[378392543,1754842720061,10000.0,0.0001958,2]
[378392544,1754842720139,10000.0,0.0001958,2]
[378392545,1754842720213,10000.0,0.0001958,2]
[378392546,1754842720285,10000.0,0.0001958,2]
[378392547,1754842720353,10000.0,0.0001958,2]
[378392548,1754842720422,10000.0,0.0001958,2]
[378392549,1754842720494,270.93695684,0.0001958,2]
[378392550,1754842726735,5000.0,0.00019954,2]
[378392551,1754842732504,583.36668272,0.000199,2]
[378392553,1754842759095,624.65194006,0.00019856,3]
[378392556,1754842779748,200.0,0.00030137,120]
[378392561,1754842833347,-1189.0,0.00019955,2]
[378392564,1754842842112,10000.0,0.00019671,2]
[378392568,1754842883938,5000.0,0.00019955,2]
[378392569,1754842893987,28848.7122364,0.00019587,2]
[378392570,1754842899982,5000.0,0.00019955,2]
[378392571,1754842915283,5000.0,0.00019955,2]
[378392572,1754842930831,5000.0,0.00019955,2]
[378392575,1754842946338,199.36897184,0.00019955,2]
[378392576,1754842949384,193.821876,0.00019554,2]
[378392587,1754843117874,253.863948,0.0001944,2]
[378392598,1754843250304,24900.0,0.00019429,2]
[378392599,1754843250733,200.0,0.00029992,120]
[378392601,1754843254281,-460.0,0.00019956,2]
[378392602,1754843254304,-460.0,0.00019956,2]
[378392603,1754843254333,-254.31827841,0.00019956,2]
[378392604,1754843254356,-460.0,0.00019956,2]
[378392605,1754843254380,-460.0,0.00019956,2]
[378392606,1754843254402,-464.64929552,0.00019956,2]
[378392607,1754843254427,-460.0,0.00019956,2]
[378392608,1754843254453,-1461.71,0.00019957,2]
[378392609,1754843254476,-2384.94764114,0.00019959,2]
[378392610,1754843254625,159.70274574,0.00019938,2]
[378392612,1754843261119,188.05042319,0.00019938,2]
[378392614,1754843295706,2055.20786325,0.00019205,5]
[378392615,1754843295737,2171.5159882,0.00019433,2]
[378392616,1754843312436,159.70274574,0.00019938,2]
[378392621,1754843329964,1158.0798217,0.0001,2]
[378392632,1754843372486,159.70274574,0.00019938,2]
[378392637,1754843408806,1286.48147735,0.000189,2]
[378392693,1754843432568,-460.0,0.00019956,2]
[378392695,1754843432579,-460.0,0.00019956,2]
[378392697,1754843432589,-453.13864487,0.00019956,2]
[378392849,1754843438427,-336.5699715,0.00019956,2]
[378392850,1754843438437,-460.0,0.00019957,2]
[378392851,1754843438447,-523.39,0.00019957,2]
[378392852,1754843438457,-272.06249438,0.00019958,2]
[378392854,1754843438535,-27.93750562,0.00019958,2]
[378392855,1754843438546,-460.0,0.00019959,2]
[378392857,1754843438555,-460.0,0.00019959,2]
[378392859,1754843438564,-466.42,0.00019959,2]
[378392861,1754843438574,-460.0,0.00019959,2]
[378392863,1754843438583,-211.04381596,0.0002,20]
[378392865,1754843438593,-7235.97210407,0.0002,10]
[378392867,1754843438602,-3954.65325926,0.0002,2]
[378392869,1754843438611,-212.38157,0.00020187,2]
[378392871,1754843438621,-460.0,0.0002023,2]
[378392873,1754843438631,-495.44,0.0002023,2]
[378392875,1754843438640,-460.0,0.0002023,2]
[378392877,1754843438649,-300.31866508,0.0002023,2]
[378392879,1754843438659,-1461.71,0.00020231,2]
[378392881,1754843438668,-460.0,0.00020231,2]
[378392883,1754843438677,-523.39,0.00020231,2]
[378392885,1754843438687,-460.0,0.00020233,2]
[378392887,1754843438696,-460.0,0.00020233,2]
[378392889,1754843438705,-466.42,0.00020233,2]
[378392891,1754843438714,-460.0,0.00020233,2]
[378392893,1754843438723,-460.0,0.00020504,2]
[378392895,1754843438733,-460.0,0.00020504,2]
[378392897,1754843438742,-1461.71,0.00020505,2]
[378392899,1754843438752,-460.0,0.00020505,2]
[378392901,1754843438762,-523.39,0.00020505,2]
[378392903,1754843438771,-460.0,0.00020507,2]
[378392905,1754843438781,-460.0,0.00020507,2]
[378392907,1754843438791,-466.42,0.00020507,2]
[378392909,1754843438801,-460.0,0.00020507,2]
[378392911,1754843438810,-184.97955607,0.00020681,2]
[378392913,1754843438819,-460.0,0.00020778,2]
[378392915,1754843438828,-460.0,0.00020778,2]
[378392917,1754843438838,-460.0,0.00020778,2]
[378392919,1754843438847,-460.0,0.00020778,2]
[378392921,1754843438856,-460.0,0.00020778,2]
[378392923,1754843438865,-460.0,0.00020778,2]
[378392926,1754843438874,-508.99,0.00020778,2]
[378392928,1754843438883,-160.0,0.00020778,2]
[378392930,1754843438893,-460.0,0.00020778,2]
[378392931,1754843438902,-599.90317827,0.00020778,2]
[378392934,1754843438912,-395.33549903,0.00020778,2]
[378392936,1754843438921,-673.53,0.00020778,2]
[378392938,1754843438930,-460.0,0.00020778,2]
[378392940,1754843438939,-1611.66,0.00020778,2]
[378392942,1754843438948,-460.0,0.00020778,2]
[378392944,1754843438957,-460.0,0.00020778,2]
[378392946,1754843438967,-460.0,0.00020779,2]
[378392948,1754843438976,-460.0,0.00020779,2]
[378392950,1754843438985,-460.0,0.00020779,2]
[378392952,1754843438994,-460.0,0.00020779,2]
[378392954,1754843439004,-462.59928293,0.00020779,2]
[378392956,1754843439013,-460.0,0.00020779,2]
[378392958,1754843439022,-460.0,0.00020779,2]
[378392960,1754843439031,-507.94,0.00020779,2]
[378392961,1754843439041,-1461.71,0.00020779,2]
[378392964,1754843439050,-460.0,0.00020779,2]
[378392967,1754843439069,-462.84417309,0.00020779,2]
[378392968,1754843439078,-505.06,0.00020779,2]
[378392971,1754843439088,-460.0,0.00020779,2]
[378392972,1754843439098,-1280.65,0.00020779,2]
[378392975,1754843439107,-460.0,0.00020779,2]
[378392977,1754843439117,-460.0,0.00020779,2]
[378392979,1754843439126,-460.0,0.00020779,2]
[378392981,1754843439136,-460.0,0.00020779,2]
[378392983,1754843439146,-460.0,0.00020779,2]
[378392985,1754843439155,-460.0,0.00020779,2]
[378392987,1754843439164,-460.0,0.00020779,2]
[378392989,1754843439175,-462.62495386,0.00020779,2]
[378392991,1754843439185,-460.0,0.00020779,2]
[378392993,1754843439194,-307.26715428,0.00020779,2]
[378392995,1754843439204,-460.0,0.00020779,2]
[378392997,1754843439213,-460.0,0.00020779,2]
[378392999,1754843439223,-460.0,0.00020779,2]
[378393001,1754843439232,-460.0,0.00020779,2]
[378393003,1754843439242,-460.0,0.00020779,2]
[378393005,1754843439251,-460.0,0.00020779,2]
[378393007,1754843439260,-460.0,0.00020779,2]
[378393026,1754843439411,-460.0,0.00020779,2]
[378393029,1754843439454,-460.0,0.00020779,2]
[378393031,1754843439463,-460.0,0.00020779,2]
[378393033,1754843439472,-460.0,0.00020779,2]
[378393035,1754843439482,-460.0,0.00020779,2]
[378393037,1754843439491,-460.0,0.00020779,2]
[378393039,1754843439500,-277.78772527,0.00020779,2]
[378393041,1754843439510,-179.38,0.00020779,2]
[378393043,1754843439519,-460.0,0.00020779,2]
[378393045,1754843439528,-523.39,0.00020779,2]
[378393047,1754843439539,-460.0,0.00020779,2]
[378393049,1754843439548,-500.0,0.0002078,2]
[378393051,1754843439557,-500.0,0.0002078,2]
[378393053,1754843439566,-500.0,0.0002078,2]
[378393055,1754843439576,-500.0,0.0002078,2]
[378393057,1754843439586,-157.37608488,0.0002078,2]
[378393059,1754843439595,-460.0,0.00020781,2]
[378393061,1754843439604,-460.0,0.00020781,2]
[378393063,1754843439614,-466.42,0.00020781,2]
[378393065,1754843439623,-460.0,0.00020781,2]
[378393067,1754843439632,-200.0,0.00020956,15]
[378393069,1754843439642,-300.0,0.00020956,15]
[378393071,1754843439652,-460.0,0.00021052,2]
[378393073,1754843439661,-508.99,0.00021052,2]
[378393075,1754843439670,-673.53,0.00021052,2]
[378393077,1754843439679,-460.0,0.00021052,2]
[378393079,1754843439688,-1611.66,0.00021052,2]
[378393081,1754843439697,-460.0,0.00021052,2]
[378393083,1754843439706,-460.0,0.00021053,2]
[378393085,1754843439716,-460.0,0.00021053,2]
[378393087,1754843439725,-357.67501886,0.00021053,2]
[378393089,1754843439734,-1461.71,0.00021053,2]
[378393091,1754843439744,-505.06,0.00021053,2]
[378393093,1754843439754,-1280.65,0.00021053,2]
[378393095,1754843439765,-460.0,0.00021053,2]
[378393097,1754843439775,-460.0,0.00021053,2]
[378393100,1754843439785,-460.0,0.00021053,2]
[378393102,1754843439796,-460.0,0.00021053,2]
[378393104,1754843439805,-460.0,0.00021053,2]
[378393106,1754843439815,-460.0,0.00021053,2]
[378393108,1754843439824,-460.0,0.00021053,2]
[378393110,1754843439833,-523.39,0.00021053,2]
[378393112,1754843439843,-460.0,0.00021053,2]
[378393115,1754843439852,-460.0,0.00021055,2]
[378393117,1754843439861,-460.0,0.00021055,2]
[378393119,1754843439870,-466.42,0.00021055,2]
[378393121,1754843439880,-460.0,0.00021055,2]
[378393123,1754843439889,-151.0,0.000211,4]
[378393125,1754843439898,-216.64838636,0.00021228,2]
[378393128,1754843439911,-160.0,0.00021228,2]
[378393130,1754843439921,-500.0,0.00021229,2]
[378393132,1754843439931,-160.0,0.00021236,2]
[378393134,1754843439940,-527.86640923,0.00021236,2]
[378393136,1754843439950,-843.0869304,0.00021236,2]
[378393138,1754843439960,-215.44987349,0.00021236,2]
[378393140,1754843439969,-231.96268195,0.00021236,2]
[378393143,1754843439979,-160.0,0.00021236,2]
[378393145,1754843439988,-12668.57659669,0.00021236,2]
[378393147,1754843439997,-160.0,0.00021236,2]
[378393149,1754843440007,-461.62346162,0.00021236,2]
[378393151,1754843440016,-500.0,0.00021247,2]
[378393153,1754843440026,-500.0,0.00021247,2]
[378393155,1754843440035,-232.38110038,0.000213,2]
[378393157,1754843440046,-500.0,0.000213,2]
[378393159,1754843440056,-443.87,0.00021316,10]
[378393161,1754843440066,-616.86229207,0.00021317,2]
[378393163,1754843440075,-846.43,0.00021317,10]
[378393165,1754843440084,-705.36,0.00021317,10]
[378393167,1754843440094,-587.8,0.00021317,10]
[378393169,1754843440103,-460.0,0.00021326,2]
[378393171,1754843440113,-508.99,0.00021326,2]
[378393174,1754843440122,-673.53,0.00021326,2]
[378393176,1754843440131,-460.0,0.00021326,2]
[378393177,1754843440140,-1611.66,0.00021326,2]
[378393180,1754843440150,-460.0,0.00021327,2]
[378393182,1754843440159,-1461.71,0.00021327,2]
[378393183,1754843440168,-505.06,0.00021327,2]
[378393185,1754843440178,-1280.65,0.00021327,2]
[378393187,1754843440187,-460.0,0.00021327,2]
[378393190,1754843440196,-460.0,0.00021327,2]
[378393192,1754843440206,-460.0,0.00021327,2]
[378393194,1754843440215,-460.0,0.00021327,2]
[378393196,1754843440224,-460.0,0.00021327,2]
[378393198,1754843440234,-460.0,0.00021327,2]
[378393200,1754843440243,-460.0,0.00021327,2]
[378393202,1754843440252,-523.39,0.00021327,2]
[378393204,1754843440262,-460.0,0.00021327,2]
[378393206,1754843440271,-460.0,0.00021329,2]
[378393208,1754843440280,-460.0,0.00021329,2]
[378393210,1754843440290,-466.42,0.00021329,2]
[378393212,1754843440300,-460.0,0.00021329,2]
[378393214,1754843440310,-151.0,0.0002136,2]
[378393216,1754843440319,-4973.29308551,0.0002136,2]
[378393218,1754843440328,-151.0,0.0002136,2]
[378393220,1754843440338,-151.0,0.0002136,2]
[378393222,1754843440347,-151.0,0.0002136,2]
[378393224,1754843440357,-151.0,0.0002136,2]
[378393226,1754843440366,-151.0,0.0002136,2]
[378393228,1754843440378,-151.0,0.0002136,2]
[378393230,1754843440387,-151.0,0.0002136,2]
[378393232,1754843440397,-151.0,0.0002136,2]
[378393234,1754843440406,-151.0,0.0002136,2]
[378393236,1754843440418,-151.0,0.0002136,2]
[378393238,1754843440427,-151.0,0.0002136,2]
[378393240,1754843440437,-151.0,0.0002136,2]
[378393242,1754843440446,-151.0,0.0002136,2]
[378393244,1754843440457,-151.0,0.0002136,2]
[378393246,1754843440467,-151.0,0.0002136,2]
[378393248,1754843440477,-151.0,0.0002136,2]
[378393250,1754843440486,-151.0,0.000215,4]
[378393252,1754843440495,-460.0,0.000216,2]
[378393254,1754843440505,-508.99,0.000216,2]
[378393256,1754843440514,-673.53,0.000216,2]
[378393259,1754843440524,-271.56774883,0.000216,2]
[378393260,1754843440533,-1611.66,0.000216,2]
[378393262,1754843440544,-460.0,0.00021601,2]
[378393264,1754843440554,-1461.71,0.00021601,2]
[378393267,1754843440564,-505.06,0.00021601,2]
[378393268,1754843440574,-1280.65,0.00021601,2]
[378393271,1754843440584,-460.0,0.00021601,2]
[378393273,1754843440594,-460.0,0.00021601,2]
[378393275,1754843440604,-460.0,0.00021601,2]
[378393277,1754843440613,-460.0,0.00021601,2]
[378393279,1754843440623,-359.07587054,0.00021601,2]
[378393281,1754843440633,-460.0,0.00021601,2]
[378393283,1754843440642,-460.0,0.00021601,2]
[378393285,1754843440654,-523.39,0.00021601,2]
[378393287,1754843440663,-460.0,0.00021601,2]
[378393289,1754843440673,-460.0,0.00021603,2]
[378393291,1754843440682,-460.0,0.00021603,2]
[378393293,1754843440692,-466.42,0.00021603,2]
[378393295,1754843440701,-460.0,0.00021603,2]
[378393297,1754843440710,-1000.0,0.00021777,2]
[378393299,1754843440719,-513.54100745,0.00021795,2]
[378393301,1754843440729,-246.76763945,0.00021848,2]
[378393303,1754843440738,-508.99,0.00021874,2]
[378393305,1754843440748,-673.53,0.00021874,2]
[378393307,1754843440757,-1611.66,0.00021874,2]
[378393309,1754843440767,-460.0,0.00021875,2]
[378393311,1754843440776,-1461.71,0.00021875,2]
[378393313,1754843440786,-505.06,0.00021875,2]
[378393315,1754843440798,-1280.65,0.00021875,2]
[378393317,1754843440807,-460.0,0.00021875,2]
[378393319,1754843440817,-460.0,0.00021875,2]
[378393321,1754843440828,-460.0,0.00021875,2]
[378393323,1754843440838,-460.0,0.00021875,2]
[378393325,1754843440847,-460.0,0.00021875,2]
[378393327,1754843440857,-523.39,0.00021875,2]
[378393329,1754843440867,-460.0,0.00021875,2]
[378393331,1754843440876,-464.28572783,0.00021877,2]
[378393333,1754843440885,-297.00694774,0.00021877,2]
[378393335,1754843440894,-466.42,0.00021877,2]
[378393337,1754843440903,-460.0,0.00021877,2]
[378393339,1754843440912,-151.0,0.000219,4]
[378393341,1754843440921,-308.0,0.000219,2]
[378393343,1754843440931,-500.0,0.00021917,2]
[378393346,1754843440940,-500.0,0.00021917,2]
[378393347,1754843440949,-1327.5605296,0.00021918,7]
[378393350,1754843440958,-200.0,0.00021918,2]
[378393351,1754843440968,-9787.89,0.00022,7]
[378393353,1754843440977,-185.0,0.00022,2]
[378393355,1754843440986,-1715.66113799,0.00022,2]
[378393357,1754843440995,-12668.57659669,0.00022,7]
[378393360,1754843441005,-215.44987349,0.00022,7]
[378393362,1754843441015,-461.62346162,0.00022,7]
[378393364,1754843441024,-525.0,0.00022,2]
[378393366,1754843441033,-344.75,0.00022,2]
[378393368,1754843441044,-2434.84,0.00022,2]
[378393370,1754843441053,-397.24524505,0.00022049,2]
[378393372,1754843441062,-5892.84,0.00022148,2]
[378393374,1754843441072,-508.99,0.00022148,2]
[378393376,1754843441081,-673.53,0.00022148,2]
[378393377,1754843441090,-1611.66,0.00022148,2]
[378393380,1754843441099,-460.0,0.00022149,2]
[378393382,1754843441109,-1461.71,0.00022149,2]
[378393384,1754843441118,-505.06,0.00022149,2]
[378393385,1754843441127,-1280.65,0.00022149,2]
[378393388,1754843441137,-460.0,0.00022149,2]
[378393391,1754843441146,-460.0,0.00022149,2]
[378393392,1754843441155,-460.0,0.00022149,2]
[378393394,1754843441164,-460.0,0.00022149,2]
[378393397,1754843441174,-523.39,0.00022149,2]
[378393398,1754843441183,-460.0,0.00022149,2]
[378393401,1754843441192,-466.42,0.00022151,2]
[378393403,1754843441201,-460.0,0.00022151,2]
[378393405,1754843441211,-527.86640923,0.00022192,7]
[378393407,1754843441220,-525.0,0.00022192,7]
[378393409,1754843441229,-184.97955602,0.00022208,2]
[378393411,1754843441238,-151.0,0.000223,10]
[378393413,1754843441247,-500.0,0.00022324,2]
[378393415,1754843441257,-153.0,0.00022359,2]
[378393417,1754843441266,-508.99,0.00022422,2]
[378393419,1754843441275,-673.53,0.00022422,2]
[378393421,1754843441284,-1611.66,0.00022422,2]
[378393423,1754843441294,-460.0,0.00022423,2]
[378393425,1754843441303,-1461.71,0.00022423,2]
[378393427,1754843441312,-505.06,0.00022423,2]
[378393429,1754843441320,-1280.65,0.00022423,2]
[378393431,1754843441330,-460.0,0.00022423,2]
[378393433,1754843441339,-460.0,0.00022423,2]
[378393435,1754843441348,-460.0,0.00022423,2]
[378393437,1754843441357,-460.0,0.00022423,2]
[378393439,1754843441366,-523.39,0.00022423,2]
[378393441,1754843441378,-460.0,0.00022423,2]
[378393443,1754843441387,-466.42,0.00022425,2]
[378393445,1754843441396,-460.0,0.00022425,2]
[378393447,1754843441406,-397.24524502,0.00022462,2]
[378393449,1754843441415,-3370.0,0.00022487,2]
[378393451,1754843441424,-153.72874864,0.00022603,2]
[378393453,1754843441433,-508.99,0.00022696,2]
[378393455,1754843441441,-673.53,0.00022696,2]
[378393457,1754843441451,-1611.66,0.00022696,2]
[378393459,1754843441460,-460.0,0.00022697,2]
[378393461,1754843441469,-1461.71,0.00022697,2]
[378393464,1754843441479,-505.06,0.00022697,2]
[378393466,1754843441488,-1280.65,0.00022697,2]
[378393468,1754843441497,-460.0,0.00022697,2]
[378393470,1754843441506,-460.0,0.00022697,2]
[378393472,1754843441515,-460.0,0.00022697,2]
[378393474,1754843441524,-553.62528636,0.00022697,2]
[378393476,1754843441533,-523.39,0.00022697,2]
[378393478,1754843441544,-460.0,0.00022697,2]
[378393480,1754843441554,-466.42,0.00022699,2]
[378393482,1754843441563,-460.0,0.00022699,2]
[378393484,1754843441573,-151.0,0.000227,9]
[378393486,1754843441582,-151.0,0.00022729,2]
[378393488,1754843441591,-397.24524502,0.00022875,2]
[378393490,1754843441600,-980.27191054,0.00022905,2]
[378393492,1754843441609,-160.0,0.00022936,2]
[378393494,1754843441618,-508.99,0.0002297,2]
[378393496,1754843441626,-673.53,0.0002297,2]
[378393498,1754843441635,-1611.66,0.0002297,2]
[378393500,1754843441644,-460.0,0.00022971,2]
[378393502,1754843441653,-1461.71,0.00022971,2]
[378393504,1754843441663,-505.06,0.00022971,2]
[378393506,1754843441672,-1280.65,0.00022971,2]
[378393508,1754843441681,-460.0,0.00022971,2]
[378393510,1754843441691,-460.0,0.00022971,2]
[378393512,1754843441701,-460.0,0.00022971,2]
[378393514,1754843441710,-523.39,0.00022971,2]
[378393516,1754843441718,-460.0,0.00022971,2]
[378393518,1754843441727,-466.42,0.00022973,2]
[378393520,1754843441737,-460.0,0.00022973,2]
[378393522,1754843441746,-3056.80004799,0.0002298,2]
[378393524,1754843441755,-599.67055957,0.00022999,2]
[378393525,1754843441764,-230.06591549,0.00022999,2]
[378393527,1754843441773,-599.67055957,0.00022999,2]
[378393530,1754843441783,-599.67055957,0.00022999,2]
[378393532,1754843441792,-599.67055957,0.00022999,2]
[378393533,1754843441801,-599.67055957,0.00022999,2]
[378393537,1754843441811,-599.67055957,0.00022999,2]
[378393539,1754843441820,-599.67055957,0.00022999,2]
[378393541,1754843441829,-599.67055957,0.00022999,2]
[378393543,1754843441838,-599.67055957,0.00022999,2]
[378393545,1754843441848,-599.67055957,0.00022999,2]
[378393547,1754843441857,-599.67055957,0.00022999,2]
[378393549,1754843441866,-599.67055957,0.00022999,2]
[378393551,1754843441875,-599.67055957,0.00022999,2]
[378393553,1754843441884,-599.67055957,0.00022999,2]
[378393555,1754843441893,-599.67055957,0.00022999,2]
[378393557,1754843441902,-599.67055957,0.00022999,2]
[378393559,1754843441912,-599.67055957,0.00022999,2]
[378393561,1754843441921,-599.67055957,0.00022999,2]
[378393563,1754843441930,-599.67055957,0.00022999,2]
[378393565,1754843441940,-599.67055957,0.00022999,2]
[378393567,1754843441949,-652.14173354,0.00022999,2]
[378393569,1754843441959,-652.14173354,0.00022999,2]
[378393571,1754843441968,-652.14173354,0.00022999,2]
[378393573,1754843441977,-652.14173354,0.00022999,2]
[378393575,1754843441986,-652.14173354,0.00022999,2]
[378393577,1754843441995,-652.14173354,0.00022999,2]
[378393579,1754843442005,-652.14173354,0.00022999,2]
[378393581,1754843442014,-652.14173354,0.00022999,2]
[378393583,1754843442023,-88050.07644149,0.00023,5]
[378393585,1754843442032,-193.93783112,0.00023,2]
[378393587,1754843442042,-1359.7280243,0.00023,2]
[378393589,1754843442051,-1340.43618727,0.00023,2]
[378393591,1754843442060,-160.0,0.00023,2]